[Event "EYCC Open-U12 2019"]
[Site "Bratislava"]
[Date "2019.08.03"]
[Round "2.5"]
[White "Petrovskiy, Vadim"]
[Black "Cnejev, Vladimir-Alexandru"]
[Result "1-0"]
[ECO "C51"]
[WhiteElo "2090"]
[BlackElo "1907"]
[Annotator "NA"]
[PlyCount "99"]
[EventDate "2019.08.02"]
[EventType "swiss"]
[EventCountry "SVK"]
[SourceTitle "playchess.com"]
[Source "ChessBase"]
[SourceQuality "1"]
[TimeControl "40/5400+30:1800+30"]

1. e4 {[%emt 0:00:00]} e5 {[%emt 0:00:00]} 2. Nf3 {[%emt 0:00:00]} Nc6 {[%emt 0:00:00]} 3. Bc4 {[%emt 0:00:00]} Bc5 {[%emt 0:00:00]} 4. b4 {[%emt 0:01:22]} Bb6 {[%emt 0:00:05]} 5. a4 {[%emt 0:00:44]} a6 {[%emt 0:00:09]} 6. c3 {[%emt 0:02:29]} Nf6 {[%emt 0:08:46]} 7. d3 {[%emt 0:01:06]} d6 {[%emt 0:01:57]} 8. O-O {[%emt 0:01:37]} O-O {[%emt 0:16:22]} 9. Re1 {[%emt 0:01:27]} Ne7 {[%emt 0:01:12]} 10. Bg5 {[%emt 0:08:23]} Ng6 {[%emt 0:01:38]} 11. a5 {[%emt 0:00:14]} Ba7 {[%emt 0:00:09]} 12. Nh4 {[%emt 0:02:38]} Nxh4 {[%emt 0:07:43]} 13. Bxh4 {[%emt 0:00:04]} h6 {[%emt 0:00:08]} 14. h3 {[%emt 0:01:52]} Kh7 {[%emt 0:02:40]} 15. Nd2 {[%emt 0:01:31]} g5 {[%emt 0:08:07]} 16. Bg3 {[%emt 0:00:02]} Ne8 {[%emt 0:01:16]} 17. Nf1 {[%emt 0:07:03]} f5 {[%emt 0:03:34]} 18. exf5 {[%emt 0:01:08]} Bxf5 {[%emt 0:00:20]} 19. Ne3 {[%emt 0:00:40]} Bg6 {[%emt 0:01:40]} 20. d4 {[%emt 0:09:58]} e4 {[%emt 0:01:55]} 21. Be2 {[%emt 0:20:00]} Ng7 {[%emt 0:01:42]} 22. Qb3 {[%emt 0:02:30]} Rb8 {[%emt 0:24:27]} 23. Rad1 {[%emt 0:03:11]} Qe8 {[%emt 0:01:58]} 24. c4 {[%emt 0:11:30]} Qf7 {[%emt 0:03:03]} 25. Qc3 {[%emt 0:01:54]} Qd7 {[%emt 0:06:50]} 26. b5 {[%emt 0:05:20]} Bh5 {[%emt 0:01:45]} 27. Bg4 {[%emt 0:01:27]} Bxg4 {[%emt 0:00:11]} 28. hxg4 {[%emt 0:00:02]} Rbe8 {[%emt 0:01:36]} 29. Re2 {[%emt 0:02:00]} axb5 {[%emt 0:00:24]} 30. cxb5 {[%emt 0:00:18]} Qxb5 {[%emt 0:00:05]} 31. Rb2 {[%emt 0:00:19]} Qa6 {[%emt 0:03:02]} 32. Qxc7 {[%emt 0:00:13]} Bb8 {[%emt 0:00:22]} 33. Qxb7 {[%emt 0:01:30]} Qxa5 {[%emt 0:00:13]} 34. Nf5 {[%emt 0:00:36]} Rxf5 {[%emt 0:01:01]} 35. gxf5 {[%emt 0:00:03]} Qxf5 {[%emt 0:00:27]} 36. Re1 {[%emt 0:02:09]} h5 {[%emt 0:01:51]} 37. Rbe2 {[%emt 0:01:42]} h4 {[%emt 0:00:14]} 38. Bh2 {[%emt 0:00:01]} Qa5 {[%emt 0:00:47]} 39. Kf1 {[%emt 0:00:52]} e3 {[%emt 0:01:15]} 40. Rxe3 {[%emt 0:00:00]} Rxe3 {[%emt 0:00:00]} 41. Rxe3 {[%emt 0:01:16]} Ba7 {[%emt 0:01:08]} 42. Qe4+ {[%emt 0:06:31]} Kg8 {[%emt 0:07:09]} 43. Re1 {[%emt 0:03:41]} Qa4 {[%emt 0:12:42]} 44. Qg6 {[%emt 0:03:47]} Qb5+ {[%emt 0:01:27]} 45. Kg1 {[%emt 0:00:13]} Bxd4 {[%emt 0:00:10]} 46. Bxd6 {[%emt 0:00:15]} g4 {[%emt 0:05:12]} 47. Rb1 {[%emt 0:01:48]} Bb2 {[%emt 0:01:09]} 48. Ba3 {[%emt 0:00:11]} g3 {[%emt 0:00:08]} 49. Rxb2 {[%emt 0:00:54]} gxf2+ {[%emt 0:00:07]} 50. Rxf2 {[%emt 0:00:08]} 1-0

[Event "EYCC Open-U12 2019"]
[Site "Bratislava"]
[Date "2019.08.03"]
[Round "2.6"]
[White "Labruyere, Roger"]
[Black "Ozkan, Taha"]
[Result "0-1"]
[ECO "D10"]
[WhiteElo "1897"]
[BlackElo "2140"]
[Annotator "NA"]
[PlyCount "60"]
[EventDate "2019.08.02"]
[EventType "swiss"]
[EventCountry "SVK"]
[SourceTitle "playchess.com"]
[Source "ChessBase"]
[SourceQuality "1"]
[TimeControl "40/5400+30:1800+30"]

1. d4 {[%emt 0:00:00]} d5 {[%emt 0:00:00]} 2. c4 {[%emt 0:00:00]} c6 {[%emt 0:00:00]} 3. Nc3 {[%emt 0:00:00]} dxc4 {[%emt 0:00:00]} 4. e4 {[%emt 0:00:00]} b5 {[%emt 0:00:00]} 5. a4 {[%emt 0:00:08]} b4 {[%emt 0:00:05]} 6. Na2 {[%emt 0:00:11]} Nf6 {[%emt 0:00:08]} 7. e5 {[%emt 0:00:12]} Nd5 {[%emt 0:00:05]} 8. Bxc4 {[%emt 0:00:18]} e6 {[%emt 0:00:05]} 9. Bd2 {[%emt 0:01:07]} a5 {[%emt 0:00:16]} 10. Nf3 {[%emt 0:00:21]} Be7 {[%emt 0:00:19]} 11. O-O {[%emt 0:00:33]} Ba6 {[%emt 0:00:07]} 12. Qe2 {[%emt 0:01:14]} Bxc4 {[%emt 0:00:09]} 13. Qxc4 {[%emt 0:00:06]} Nb6 {[%emt 0:00:05]} 14. Qe2 {[%emt 0:03:51]} Nxa4 {[%emt 0:07:39]} 15. Nc1 {[%emt 0:04:26]} Nb6 {[%emt 0:00:43]} 16. Nb3 {[%emt 0:02:55]} Qd5 {[%emt 0:01:37]} 17. Nc1 {[%emt 0:09:33]} N8d7 {[%emt 0:06:33]} 18. Nd3 {[%emt 0:05:25]} O-O {[%emt 0:12:11]} 19. Rfc1 {[%emt 0:08:50]} Rfc8 {[%emt 0:09:25]} 20. Be3 {[%emt 0:19:58]} c5 {[%emt 0:11:31]} 21. Nf4 {[%emt 0:08:33]} Qb7 {[%emt 0:04:38]} 22. dxc5 {[%emt 0:03:17]} Bxc5 {[%emt 0:05:07]} 23. Ng5 {[%emt 0:12:20]} h6 {[%emt 0:10:55]} 24. Nf3 {[%emt 0:06:45]} Bxe3 {[%emt 0:02:35]} 25. Qxe3 {[%emt 0:00:49]} Rxc1+ {[%emt 0:01:31]} 26. Rxc1 {[%emt 0:00:12]} Rc8 {[%emt 0:00:53]} 27. Rxc8+ {[%emt 0:02:10]} Qxc8 {[%emt 0:00:10]} 28. g4 {[%emt 0:00:57]} Qc2 {[%emt 0:02:57]} 29. g5 {[%emt 0:02:02]} hxg5 {[%emt 0:01:24]} 30. Nxg5 {[%emt 0:01:35]} Qd1+ {[%emt 0:00:42]} 0-1

[Event "EYCC Open-U12 2019"]
[Site "Bratislava"]
[Date "2019.08.03"]
[Round "2.7"]
[White "Fiszer, Bartosz"]
[Black "Paseka, Matyas"]
[Result "1-0"]
[ECO "B96"]
[WhiteElo "2124"]
[BlackElo "1917"]
[Annotator "NA"]
[PlyCount "49"]
[EventDate "2019.08.02"]
[EventType "swiss"]
[EventCountry "SVK"]
[SourceTitle "playchess.com"]
[Source "ChessBase"]
[SourceQuality "1"]
[TimeControl "40/5400+30:1800+30"]

1. e4 {[%emt 0:00:00]} c5 {[%emt 0:00:00]} 2. Nf3 {[%emt 0:00:00]} d6 {[%emt 0:00:00]} 3. d4 {[%emt 0:00:00]} cxd4 {[%emt 0:00:00]} 4. Nxd4 {[%emt 0:00:00]} Nf6 {[%emt 0:00:08]} 5. Nc3 {[%emt 0:00:00]} a6 {[%emt 0:00:12]} 6. Bg5 {[%emt 0:00:14]} e6 {[%emt 0:00:20]} 7. f4 {[%emt 0:00:09]} h6 {[%emt 0:00:37]} 8. Bh4 {[%emt 0:00:09]} Nbd7 {[%emt 0:01:15]} 9. Qe2 {[%emt 0:03:02]} Be7 {[%emt 0:02:18]} 10. O-O-O {[%emt 0:00:55]} Qc7 {[%emt 0:01:53]} 11. Kb1 {[%emt 0:14:56]} b5 {[%emt 0:14:36]} 12. e5 {[%emt 0:23:03]} dxe5 {[%emt 0:24:05]} 13. fxe5 {[%emt 0:00:02]} Qxe5 {[%emt 0:02:40]} 14. Qf3 {[%emt 0:00:13]} Qb8 {[%emt 0:00:09]} 15. Nc6 {[%emt 0:01:43]} Qb7 {[%emt 0:00:12]} 16. Be2 {[%emt 0:04:58]} b4 {[%emt 0:10:22]} 17. Ne4 {[%emt 0:08:10]} Nxe4 {[%emt 0:06:01]} 18. Qxe4 {[%emt 0:00:03]} Nf6 {[%emt 0:27:54]} 19. Qe5 {[%emt 0:02:46]} Qxc6 {[%emt 0:06:15]} 20. Bf3 {[%emt 0:00:08]} Qc4 {[%emt 0:00:28]} 21. Bxa8 {[%emt 0:00:06]} Qxh4 {[%emt 0:00:08]} 22. Bc6+ {[%emt 0:00:03]} Bd7 {[%emt 0:00:43]} 23. Qb8+ {[%emt 0:00:08]} Bd8 {[%emt 0:00:04]} 24. Qd6 {[%emt 0:00:04]} Be7 {[%emt 0:01:05]} 25. Bxd7+ {[%emt 0:00:08]} 1-0

[Event "EYCC Open-U12 2019"]
[Site "Bratislava"]
[Date "2019.08.03"]
[Round "2.8"]
[White "Stork, Christopher"]
[Black "Piliposyan, Robert"]
[Result "0-1"]
[ECO "B12"]
[WhiteElo "1905"]
[BlackElo "2156"]
[Annotator "NA"]
[PlyCount "84"]
[EventDate "2019.08.02"]
[EventType "swiss"]
[EventCountry "SVK"]
[SourceTitle "playchess.com"]
[Source "ChessBase"]
[SourceQuality "1"]
[TimeControl "40/5400+30:1800+30"]

1. e4 {[%emt 0:00:00]} c6 {[%emt 0:00:00]} 2. d4 {[%emt 0:00:00]} d5 {[%emt 0:00:10]} 3. e5 {[%emt 0:00:00]} Bf5 {[%emt 0:00:07]} 4. h4 {[%emt 0:00:02]} h5 {[%emt 0:00:06]} 5. Bd3 {[%emt 0:00:04]} Bxd3 {[%emt 0:00:27]} 6. Qxd3 {[%emt 0:00:08]} e6 {[%emt 0:00:11]} 7. Nf3 {[%emt 0:03:52]} Qa5+ {[%emt 0:07:25]} 8. Nbd2 {[%emt 0:06:04]} Qa6 {[%emt 0:01:06]} 9. c4 {[%emt 0:02:15]} Bb4 {[%emt 0:03:19]} 10. O-O {[%emt 0:03:51]} Nh6 {[%emt 0:10:39]} 11. Rd1 {[%emt 0:04:09]} Nf5 {[%emt 0:03:50]} 12. b3 {[%emt 0:04:38]} Nd7 {[%emt 0:03:09]} 13. Bb2 {[%emt 0:03:34]} Nb6 {[%emt 0:06:31]} 14. g3 {[%emt 0:04:22]} Rd8 {[%emt 0:04:51]} 15. a3 {[%emt 0:06:27]} Bxd2 {[%emt 0:10:12]} 16. Nxd2 {[%emt 0:02:45]} dxc4 {[%emt 0:00:38]} 17. Nxc4 {[%emt 0:02:55]} Qb5 {[%emt 0:08:54]} 18. Nxb6 {[%emt 0:02:52]} Qxb6 {[%emt 0:00:54]} 19. Qc4 {[%emt 0:04:20]} Rd5 {[%emt 0:02:06]} 20. Rd3 {[%emt 0:04:37]} O-O {[%emt 0:01:10]} 21. Rad1 {[%emt 0:02:07]} Rfd8 {[%emt 0:00:51]} 22. Kf1 {[%emt 0:03:41]} Qc7 {[%emt 0:04:35]} 23. Qc2 {[%emt 0:05:59]} Qb6 {[%emt 0:04:18]} 24. Qc4 {[%emt 0:00:38]} R8d7 {[%emt 0:00:07]} 25. Ke2 {[%emt 0:03:50]} Qc7 {[%emt 0:05:55]} 26. R1d2 {[%emt 0:08:22]} b5 {[%emt 0:01:30]} 27. Qc1 {[%emt 0:00:28]} a5 {[%emt 0:00:13]} 28. b4 {[%emt 0:04:34]} axb4 {[%emt 0:03:29]} 29. axb4 {[%emt 0:00:05]} Qb6 {[%emt 0:00:27]} 30. Qc3 {[%emt 0:03:13]} Ra7 {[%emt 0:00:48]} 31. Rc2 {[%emt 0:00:51]} Ne7 {[%emt 0:00:33]} 32. Rd1 {[%emt 0:01:48]} Rdd7 {[%emt 0:03:08]} 33. Ra1 {[%emt 0:02:35]} Rxa1 {[%emt 0:01:05]} 34. Bxa1 {[%emt 0:00:06]} Ra7 {[%emt 0:00:43]} 35. Bb2 {[%emt 0:01:19]} Ra2 {[%emt 0:01:15]} 36. Kd3 {[%emt 0:02:23]} Nd5 {[%emt 0:00:45]} 37. Qb3 {[%emt 0:00:34]} Ra4 {[%emt 0:00:17]} 38. Bc3 {[%emt 0:01:06]} Qa7 {[%emt 0:00:30]} 39. Rc1 {[%emt 0:05:18]} Ra3 {[%emt 0:00:44]} 40. Qb1 {[%emt 0:00:00]} Qa4 {[%emt 0:00:00]} 41. Kd2 {[%emt 0:05:23]} Rb3 {[%emt 0:02:12]} 42. Qe4 {[%emt 0:01:17]} Rxc3 {[%emt 0:00:13]} 0-1

[Event "EYCC Open-U12 2019"]
[Site "Bratislava"]
[Date "2019.08.03"]
[Round "2.9"]
[White "Kluehs, Gustaf"]
[Black "Navumenka, Mikhei"]
[Result "0-1"]
[ECO "A05"]
[WhiteElo "1811"]
[BlackElo "2196"]
[Annotator "NA"]
[PlyCount "54"]
[EventDate "2019.08.02"]
[EventType "swiss"]
[EventCountry "SVK"]
[SourceTitle "playchess.com"]
[Source "ChessBase"]
[SourceQuality "1"]
[TimeControl "40/5400+30:1800+30"]

1. Nf3 {[%emt 0:00:00]} Nf6 {[%emt 0:00:00]} 2. g3 {[%emt 0:00:00]} b6 {[%emt 0:00:38]} 3. Bg2 {[%emt 0:00:00]} Bb7 {[%emt 0:00:05]} 4. O-O {[%emt 0:00:00]} e6 {[%emt 0:00:23]} 5. c4 {[%emt 0:00:13]} c5 {[%emt 0:00:56]} 6. b3 {[%emt 0:00:29]} Be7 {[%emt 0:00:08]} 7. Bb2 {[%emt 0:00:35]} O-O {[%emt 0:00:13]} 8. d3 {[%emt 0:02:22]} d5 {[%emt 0:03:25]} 9. Ne5 {[%emt 0:01:47]} Qc7 {[%emt 0:00:24]} 10. e3 {[%emt 0:06:01]} Rd8 {[%emt 0:08:20]} 11. Ng4 {[%emt 0:01:55]} Nbd7 {[%emt 0:02:21]} 12. Nxf6+ {[%emt 0:01:02]} Bxf6 {[%emt 0:00:35]} 13. Bxf6 {[%emt 0:02:18]} Nxf6 {[%emt 0:00:03]} 14. Qc2 {[%emt 0:00:56]} e5 {[%emt 0:02:36]} 15. Nd2 {[%emt 0:01:15]} dxc4 {[%emt 0:10:17]} 16. dxc4 {[%emt 0:02:31]} Bxg2 {[%emt 0:02:06]} 17. Kxg2 {[%emt 0:00:09]} Qc6+ {[%emt 0:01:39]} 18. Kg1 {[%emt 0:00:37]} h5 {[%emt 0:04:08]} 19. f3 {[%emt 0:07:45]} Rd6 {[%emt 0:04:12]} 20. Rad1 {[%emt 0:02:41]} Rad8 {[%emt 0:01:59]} 21. e4 {[%emt 0:02:22]} Qd7 {[%emt 0:01:13]} 22. Rf2 {[%emt 0:00:32]} h4 {[%emt 0:02:50]} 23. Kg2 {[%emt 0:05:19]} Nh5 {[%emt 0:00:52]} 24. f4 {[%emt 0:03:25]} hxg3 {[%emt 0:01:01]} 25. hxg3 {[%emt 0:00:24]} Qg4 {[%emt 0:06:24]} 26. Rf3 {[%emt 0:06:00]} Nxf4+ {[%emt 0:00:53]} 27. Kf1 {[%emt 0:01:35]} Qh3+ {[%emt 0:01:58]} 0-1

[Event "EYCC Open-U12 2019"]
[Site "Bratislava"]
[Date "2019.08.03"]
[Round "2.10"]
[White "Magold, Filip"]
[Black "Vergara Anton, Diego"]
[Result "0-1"]
[ECO "C11"]
[WhiteElo "1865"]
[BlackElo "2183"]
[Annotator "NA"]
[PlyCount "148"]
[EventDate "2019.08.02"]
[EventType "swiss"]
[EventCountry "SVK"]
[SourceTitle "playchess.com"]
[Source "ChessBase"]
[SourceQuality "1"]
[TimeControl "40/5400+30:1800+30"]

1. e4 {[%emt 0:00:00]} e6 {[%emt 0:00:00]} 2. d4 {[%emt 0:00:00]} d5 3. Nc3 {[%emt 0:00:06]} Nf6 {[%emt 0:00:02]} 4. e5 {[%emt 0:00:10]} Nfd7 {[%emt 0:01:17]} 5. f4 {[%emt 0:00:21]} c5 {[%emt 0:00:06]} 6. Nf3 {[%emt 0:00:26]} Qb6 {[%emt 0:03:19]} 7. a3 {[%emt 0:07:33]} a6 {[%emt 0:04:04]} 8. Be3 {[%emt 0:01:35]} Nc6 {[%emt 0:00:44]} 9. Be2 {[%emt 0:02:15]} cxd4 {[%emt 0:04:47]} 10. Nxd4 {[%emt 0:00:16]} Bc5 {[%emt 0:02:38]} 11. Na4 {[%emt 0:04:03]} Qa5+ {[%emt 0:00:41]} 12. c3 {[%emt 0:00:41]} Bxd4 {[%emt 0:02:50]} 13. Bxd4 {[%emt 0:00:26]} Nxd4 {[%emt 0:06:42]} 14. Qxd4 {[%emt 0:00:09]} O-O {[%emt 0:00:41]} 15. O-O {[%emt 0:02:47]} Qc7 {[%emt 0:02:07]} 16. b4 {[%emt 0:03:00]} b5 {[%emt 0:16:57]} 17. Nb2 {[%emt 0:04:15]} f6 {[%emt 0:02:14]} 18. Bg4 {[%emt 0:14:52]} Nb6 {[%emt 0:06:32]} 19. Rae1 {[%emt 0:11:27]} f5 {[%emt 0:01:07]} 20. Be2 {[%emt 0:02:32]} Bd7 {[%emt 0:00:44]} 21. Rc1 {[%emt 0:05:32]} Rfc8 {[%emt 0:03:02]} 22. Bd1 {[%emt 0:12:09]} Nc4 {[%emt 0:02:11]} 23. Nxc4 {[%emt 0:00:33]} Qxc4 {[%emt 0:00:03]} 24. Qxc4 {[%emt 0:01:02]} Rxc4 {[%emt 0:00:25]} 25. Bb3 {[%emt 0:03:07]} Rc7 {[%emt 0:05:08]} 26. Rc2 {[%emt 0:04:50]} a5 {[%emt 0:02:43]} 27. Kf2 {[%emt 0:04:16]} Kf7 {[%emt 0:05:50]} 28. Ke3 {[%emt 0:02:30]} h6 {[%emt 0:02:02]} 29. g3 {[%emt 0:03:02]} Ke7 {[%emt 0:02:15]} 30. h4 {[%emt 0:02:49]} Be8 {[%emt 0:02:53]} 31. Kd4 {[%emt 0:00:35]} Kd8 {[%emt 0:03:36]} 32. Rg1 {[%emt 0:02:05]} Bh5 {[%emt 0:00:40]} 33. Rf1 {[%emt 0:00:44]} Kc8 {[%emt 0:01:41]} 34. Ra1 {[%emt 0:01:13]} a4 {[%emt 0:02:04]} 35. Ba2 {[%emt 0:00:04]} Kb7 {[%emt 0:00:31]} 36. Rac1 {[%emt 0:00:18]} Kb6 {[%emt 0:00:40]} 37. Rf2 {[%emt 0:00:22]} Rac8 {[%emt 0:03:20]} 38. Rd2 {[%emt 0:01:30]} Bf3 {[%emt 0:05:22]} 39. Rf2 {[%emt 0:00:59]} Be4 {[%emt 0:00:12]} 40. Rh2 {[%emt 0:00:00]} Rg8 {[%emt 0:00:00]} 41. Rd1 {[%emt 0:07:24]} g6 {[%emt 0:06:42]} 42. Rh3 {[%emt 0:09:36]} g5 {[%emt 0:05:51]} 43. hxg5 {[%emt 0:00:13]} hxg5 {[%emt 0:00:03]} 44. Rh6 {[%emt 0:00:51]} Rc6 {[%emt 0:00:23]} 45. fxg5 {[%emt 0:17:05]} Rxg5 {[%emt 0:00:02]} 46. Rh8 {[%emt 0:00:29]} Rxg3 {[%emt 0:01:38]} 47. Rb8+ {[%emt 0:00:21]} Ka6 {[%emt 0:00:28]} 48. Rd8 {[%emt 0:01:20]} Rg2 {[%emt 0:07:50]} 49. Rd6 {[%emt 0:01:08]} Kb6 {[%emt 0:00:28]} 50. Bb1 {[%emt 0:00:19]} Bxb1 {[%emt 0:00:36]} 51. Rxb1 {[%emt 0:00:02]} Rg4+ {[%emt 0:01:00]} 52. Kd3 {[%emt 0:00:10]} Rxd6 {[%emt 0:00:15]} 53. exd6 {[%emt 0:00:01]} Kc6 {[%emt 0:00:06]} 54. d7 {[%emt 0:00:10]} Kxd7 {[%emt 0:00:05]} 55. Rh1 {[%emt 0:00:01]} Rg3+ {[%emt 0:00:36]} 56. Kd2 {[%emt 0:00:13]} d4 {[%emt 0:02:06]} 57. Rh7+ {[%emt 0:00:12]} Kc6 {[%emt 0:00:06]} 58. cxd4 {[%emt 0:00:09]} Rxa3 {[%emt 0:00:37]} 59. Re7 {[%emt 0:00:14]} Kd5 {[%emt 0:00:38]} 60. Rb7 {[%emt 0:00:06]} Kc4 {[%emt 0:00:11]} 61. Re7 {[%emt 0:00:46]} Rd3+ {[%emt 0:00:27]} 62. Kc2 {[%emt 0:00:09]} Rxd4 {[%emt 0:00:16]} 63. Rxe6 {[%emt 0:00:05]} Kxb4 {[%emt 0:00:08]} 64. Re5 {[%emt 0:00:06]} Rf4 {[%emt 0:00:08]} 65. Kb2 {[%emt 0:00:05]} Rf2+ {[%emt 0:00:11]} 66. Kb1 {[%emt 0:00:07]} Kc4 {[%emt 0:00:35]} 67. Re8 {[%emt 0:00:07]} b4 {[%emt 0:00:34]} 68. Rc8+ {[%emt 0:00:05]} Kb3 {[%emt 0:00:06]} 69. Rc1 {[%emt 0:00:04]} Ka3 {[%emt 0:00:16]} 70. Ka1 {[%emt 0:00:36]} b3 {[%emt 0:00:26]} 71. Rh1 {[%emt 0:00:07]} Kb4 {[%emt 0:00:07]} 72. Rd1 {[%emt 0:00:11]} a3 {[%emt 0:00:30]} 73. Kb1 {[%emt 0:00:22]} a2+ {[%emt 0:00:53]} 74. Ka1 {[%emt 0:00:05]} Ka3 {[%emt 0:00:17]} 0-1

[Event "EYCC Open-U12 2019"]
[Site "Bratislava"]
[Date "2019.08.04"]
[Round "3.1"]
[White "Bakiev, Diyor"]
[Black "Samadov, Read"]
[Result "1/2-1/2"]
[ECO "C02"]
[WhiteElo "2121"]
[BlackElo "2230"]
[Annotator "NA"]
[PlyCount "81"]
[EventDate "2019.08.02"]
[EventType "swiss"]
[EventCountry "SVK"]
[SourceTitle "playchess.com"]
[Source "ChessBase"]
[SourceQuality "1"]
[TimeControl "40/5400+30:1800+30"]

1. e4 {[%emt 0:00:00]} e6 {[%emt 0:00:00]} 2. d4 {[%emt 0:00:00]} d5 {[%emt 0:00:00]} 3. e5 {[%emt 0:00:20]} c5 {[%emt 0:00:02]} 4. c3 {[%emt 0:00:09]} Nc6 {[%emt 0:00:06]} 5. Nf3 {[%emt 0:00:09]} Bd7 {[%emt 0:00:53]} 6. Be2 {[%emt 0:00:10]} Nge7 {[%emt 0:02:34]} 7. Na3 {[%emt 0:00:49]} cxd4 {[%emt 0:06:34]} 8. cxd4 {[%emt 0:00:12]} Nf5 {[%emt 0:07:40]} 9. Nc2 {[%emt 0:01:09]} Qb6 {[%emt 0:01:54]} 10. O-O {[%emt 0:00:20]} Rc8 {[%emt 0:01:21]} 11. Bd3 {[%emt 0:06:06]} Nb4 {[%emt 0:04:45]} 12. Nxb4 {[%emt 0:08:52]} Bxb4 {[%emt 0:03:00]} 13. Be3 {[%emt 0:09:12]} Bb5 {[%emt 0:09:07]} 14. Bxb5+ {[%emt 0:08:16]} Qxb5 {[%emt 0:00:08]} 15. Qb3 {[%emt 0:02:19]} a6 {[%emt 0:14:06]} 16. a3 {[%emt 0:02:28]} Be7 {[%emt 0:00:20]} 17. Qxb5+ {[%emt 0:00:54]} axb5 {[%emt 0:00:01]} 18. Rfc1 {[%emt 0:02:31]} Kd7 {[%emt 0:02:08]} 19. Bd2 {[%emt 0:02:41]} Rc4 {[%emt 0:04:02]} 20. Rxc4 {[%emt 0:09:18]} dxc4 {[%emt 0:01:59]} 21. g4 {[%emt 0:06:28]} Nh4 {[%emt 0:02:01]} 22. Nxh4 {[%emt 0:01:00]} Bxh4 {[%emt 0:00:01]} 23. Kg2 {[%emt 0:04:27]} Be7 {[%emt 0:01:47]} 24. Kf3 {[%emt 0:01:09]} Kc6 {[%emt 0:07:29]} 25. Bb4 {[%emt 0:03:45]} Bd8 {[%emt 0:03:06]} 26. Rg1 {[%emt 0:12:21]} Kd5 {[%emt 0:00:56]} 27. Ke3 {[%emt 0:00:13]} g5 {[%emt 0:03:49]} 28. Rg3 {[%emt 0:04:13]} f5 {[%emt 0:06:40]} 29. exf6 {[%emt 0:02:27]} Bxf6 {[%emt 0:00:07]} 30. Bc3 {[%emt 0:00:27]} h5 {[%emt 0:01:42]} 31. Rf3 {[%emt 0:02:47]} Rh6 {[%emt 0:00:47]} 32. gxh5 {[%emt 0:01:55]} g4 {[%emt 0:00:22]} 33. Rg3 {[%emt 0:00:08]} Rxh5 {[%emt 0:00:12]} 34. Rxg4 {[%emt 0:00:09]} Rxh2 {[%emt 0:00:31]} 35. Rg6 {[%emt 0:03:38]} Rh6 {[%emt 0:00:50]} 36. Rg8 {[%emt 0:01:33]} Rh8 {[%emt 0:00:44]} 37. Rg6 {[%emt 0:00:17]} Rh6 {[%emt 0:04:23]} 38. Rg8 {[%emt 0:00:06]} Rh8 {[%emt 0:01:45]} 39. Rg6 Rf8 40. f4 Be7 41. Rg7 1/2-1/2

[Event "EYCC Open-U12 2019"]
[Site "Bratislava"]
[Date "2019.08.04"]
[Round "3.2"]
[White "Han, Yichen"]
[Black "Tran, David"]
[Result "1/2-1/2"]
[ECO "A48"]
[WhiteElo "2217"]
[BlackElo "2112"]
[Annotator "NA"]
[PlyCount "73"]
[EventDate "2019.08.02"]
[EventType "swiss"]
[EventCountry "SVK"]
[SourceTitle "playchess.com"]
[Source "ChessBase"]
[SourceQuality "1"]
[TimeControl "40/5400+30:1800+30"]

1. d4 {[%emt 0:00:00]} Nf6 {[%emt 0:00:00]} 2. Nf3 {[%emt 0:00:00]} g6 {[%emt 0:00:00]} 3. Bg5 {[%emt 0:00:00]} Bg7 {[%emt 0:00:00]} 4. Nbd2 {[%emt 0:00:00]} d6 {[%emt 0:00:04]} 5. e4 {[%emt 0:00:13]} c5 {[%emt 0:02:09]} 6. c3 {[%emt 0:03:01]} O-O {[%emt 0:02:21]} 7. dxc5 {[%emt 0:00:33]} dxc5 {[%emt 0:00:07]} 8. Bc4 {[%emt 0:00:07]} Nc6 {[%emt 0:02:01]} 9. O-O {[%emt 0:00:51]} Qc7 {[%emt 0:03:16]} 10. Qe2 {[%emt 0:00:31]} Rd8 {[%emt 0:03:26]} 11. Rad1 {[%emt 0:05:04]} Na5 {[%emt 0:06:51]} 12. Bd3 {[%emt 0:04:32]} Be6 {[%emt 0:01:03]} 13. b3 {[%emt 0:02:57]} h6 {[%emt 0:02:32]} 14. Bh4 {[%emt 0:01:32]} Nh5 {[%emt 0:00:56]} 15. Qe3 {[%emt 0:12:12]} b6 {[%emt 0:15:02]} 16. e5 {[%emt 0:05:49]} Nf4 {[%emt 0:00:46]} 17. Be4 {[%emt 0:03:39]} Nd5 {[%emt 0:00:43]} 18. Bxd5 {[%emt 0:00:41]} Rxd5 {[%emt 0:01:39]} 19. c4 {[%emt 0:01:37]} Rd7 {[%emt 0:00:34]} 20. Nb1 {[%emt 0:05:01]} Rad8 {[%emt 0:02:08]} 21. Nc3 {[%emt 0:01:57]} Rxd1 {[%emt 0:02:50]} 22. Nxd1 {[%emt 0:03:27]} Bg4 {[%emt 0:01:36]} 23. Bg3 {[%emt 0:01:38]} Bxf3 {[%emt 0:02:09]} 24. gxf3 {[%emt 0:01:12]} Qd7 {[%emt 0:00:22]} 25. Nc3 {[%emt 0:01:24]} Nc6 {[%emt 0:01:46]} 26. Rd1 {[%emt 0:04:06]} Nd4 {[%emt 0:00:49]} 27. Kg2 {[%emt 0:00:37]} Kh7 {[%emt 0:04:27]} 28. Qe4 {[%emt 0:06:06]} Qc8 {[%emt 0:07:25]} 29. Bf4 {[%emt 0:07:56]} Qa8 {[%emt 0:01:21]} 30. Qxa8 {[%emt 0:06:57]} Rxa8 {[%emt 0:00:26]} 31. Nb5 {[%emt 0:01:32]} Nxb5 {[%emt 0:01:57]} 32. cxb5 {[%emt 0:00:05]} g5 {[%emt 0:04:58]} 33. Bg3 {[%emt 0:00:45]} a6 {[%emt 0:01:39]} 34. bxa6 {[%emt 0:02:36]} Rxa6 {[%emt 0:00:47]} 35. Rd7 {[%emt 0:00:07]} Bf8 {[%emt 0:00:31]} 36. a4 {[%emt 0:02:32]} b5 {[%emt 0:00:26]} 37. axb5 1/2-1/2

[Event "EYCC Open-U12 2019"]
[Site "Bratislava"]
[Date "2019.08.04"]
[Round "3.3"]
[White "Tunsjo, Axel"]
[Black "Strybuk, Artsiom I"]
[Result "1/2-1/2"]
[ECO "C25"]
[WhiteElo "2039"]
[BlackElo "2193"]
[Annotator "NA"]
[PlyCount "34"]
[EventDate "2019.08.02"]
[EventType "swiss"]
[EventCountry "SVK"]
[SourceTitle "playchess.com"]
[Source "ChessBase"]
[SourceQuality "1"]
[TimeControl "40/5400+30:1800+30"]

1. e4 {[%emt 0:00:00]} e5 {[%emt 0:00:00]} 2. Nc3 {[%emt 0:00:25]} Bc5 {[%emt 0:02:02]} 3. Bc4 {[%emt 0:00:40]} Nc6 {[%emt 0:03:53]} 4. d3 {[%emt 0:00:32]} d6 {[%emt 0:13:47]} 5. Na4 {[%emt 0:00:29]} Bb6 {[%emt 0:01:50]} 6. Nxb6 {[%emt 0:00:29]} axb6 {[%emt 0:00:04]} 7. a3 {[%emt 0:00:08]} Nf6 {[%emt 0:03:30]} 8. Ne2 {[%emt 0:01:26]} Be6 {[%emt 0:01:39]} 9. Bxe6 {[%emt 0:10:11]} fxe6 {[%emt 0:00:05]} 10. O-O {[%emt 0:01:47]} O-O {[%emt 0:01:37]} 11. f4 {[%emt 0:08:42]} exf4 {[%emt 0:01:00]} 12. Bxf4 {[%emt 0:00:36]} Qe8 {[%emt 0:03:57]} 13. Ng3 {[%emt 0:04:50]} Qg6 {[%emt 0:02:29]} 14. Qd2 {[%emt 0:00:52]} Rf7 {[%emt 0:05:09]} 15. Be3 {[%emt 0:07:19]} Raf8 {[%emt 0:02:48]} 16. Rf2 {[%emt 0:01:50]} Ng4 {[%emt 0:25:26]} 17. Rxf7 {[%emt 0:00:12]} Rxf7 {[%emt 0:00:10]} 1/2-1/2